[Event "Portugal Open 2020"]
[Site "Lisbon"]
[Date "2020.01.28"]
[Round "5.40"]
[White "Twardowski, Hubert"]
[Black "Gonzalez Trigal, Jose Luis"]
[Result "1/2-1/2"]
[ECO "C55"]
[WhiteElo "1875"]
[BlackElo "2369"]
[Annotator "RC"]
[PlyCount "76"]
[EventDate "2020.01.25"]
[EventType "swiss"]
[EventCountry "POR"]
[SourceTitle "playchess.com"]
[Source "ChessBase"]
[SourceQuality "1"]
[TimeControl "5400+30"]

1. e4 {[%emt 0:01:26]} e5 {[%emt 0:00:00]} 2. Nf3 {[%emt 0:01:45]} Nc6 {[%emt 0:00:00]} 3. Bc4 {[%emt 0:01:41]} Nf6 {[%emt 0:00:00]} 4. d3 {[%emt 0:00:33]} Be7 {[%emt 0:00:12]} 5. O-O {[%emt 0:01:03]} O-O {[%emt 0:00:08]} 6. Re1 {[%emt 0:00:20]} d6 {[%emt 0:00:15]} 7. a4 {[%emt 0:01:26]} Na5 {[%emt 0:00:25]} 8. Ba2 {[%emt 0:00:32]} c5 {[%emt 0:00:10]} 9. Bg5 {[%emt 0:02:34]} h6 {[%emt 0:04:00]} 10. Bxf6 {[%emt 0:03:57]} Bxf6 {[%emt 0:00:07]} 11. Nc3 {[%emt 0:05:55]} g6 {[%emt 0:00:16]} 12. Nd5 {[%emt 0:02:46]} Bg7 {[%emt 0:00:08]} 13. c3 {[%emt 0:00:20]} Nc6 {[%emt 0:01:50]} 14. b4 {[%emt 0:07:07]} b6 {[%emt 0:05:10]} 15. b5 {[%emt 0:11:20]} Na5 {[%emt 0:09:22]} 16. Rb1 {[%emt 0:03:44]} Be6 {[%emt 0:06:26]} 17. Rb2 {[%emt 0:08:30]} Kh8 {[%emt 0:14:49]} 18. Rd2 {[%emt 0:01:18]} f5 {[%emt 0:04:53]} 19. Rc2 {[%emt 0:17:22]} Rb8 {[%emt 0:24:42]} 20. Nf4 {[%emt 0:19:20]} exf4 {[%emt 0:06:14]} 21. Bxe6 {[%emt 0:00:06]} fxe4 {[%emt 0:00:14]} 22. dxe4 {[%emt 0:00:01]} Qe7 {[%emt 0:00:30]} 23. Bd5 {[%emt 0:00:10]} Rbc8 {[%emt 0:03:05]} 24. Qd3 {[%emt 0:02:51]} c4 {[%emt 0:01:07]} 25. Qd1 {[%emt 0:00:36]} Nb3 {[%emt 0:02:55]} 26. Nd4 {[%emt 0:00:31]} Nc5 {[%emt 0:02:02]} 27. Nc6 {[%emt 0:01:11]} Qd7 {[%emt 0:01:30]} 28. Bxc4 {[%emt 0:00:24]} f3 {[%emt 0:02:36]} 29. Re3 {[%emt 0:02:32]} Qg4 {[%emt 0:02:51]} 30. Rxf3 {[%emt 0:01:00]} Qxe4 {[%emt 0:02:51]} 31. Bd5 {[%emt 0:01:08]} Qxa4 {[%emt 0:01:24]} 32. Ne7 {[%emt 0:00:37]} Rxf3 {[%emt 0:00:21]} 33. Bxf3 {[%emt 0:00:54]} Re8 {[%emt 0:00:41]} 34. Nxg6+ {[%emt 0:01:18]} Kh7 {[%emt 0:00:05]} 35. Bh5 {[%emt 0:00:35]} Qxc2 {[%emt 0:03:11]} 36. Nf8+ {[%emt 0:00:12]} Kg8 {[%emt 0:00:12]} 37. Qd5+ {[%emt 0:00:09]} Kh8 {[%emt 0:00:09]} 38. Ng6+ {[%emt 0:00:24]} Qxg6 {[%emt 0:00:23]} 1/2-1/2

[Event "Portugal Open 2020"]
[Site "Lisbon"]
[Date "2020.01.29"]
[Round "6.12"]
[White "Campora, Daniel H."]
[Black "Risting, Eivind Olav"]
[Result "1-0"]
[ECO "B30"]
[WhiteElo "2420"]
[BlackElo "2306"]
[Annotator "ChessBase"]
[PlyCount "115"]
[EventDate "2020.01.25"]
[EventType "swiss"]
[EventCountry "POR"]
[SourceTitle "playchess.com"]
[Source "ChessBase"]
[SourceQuality "1"]
[TimeControl "5400+30"]

1. e4 c5 {[%emt 0:00:00]} 2. Nf3 {[%emt 0:00:00]} Nc6 {[%emt 0:00:00]} 3. Bb5 {[%emt 0:00:00]} e6 {[%emt 0:00:05]} 4. Bxc6 {[%emt 0:00:04]} bxc6 {[%emt 0:00:18]} 5. O-O {[%emt 0:00:15]} Ne7 {[%emt 0:00:31]} 6. c3 {[%emt 0:00:40]} Ng6 {[%emt 0:07:53]} 7. d4 {[%emt 0:00:10]} cxd4 {[%emt 0:13:50]} 8. cxd4 {[%emt 0:00:06]} d6 {[%emt 0:01:15]} 9. Qc2 {[%emt 0:00:32]} Bb7 {[%emt 0:01:41]} 10. Bg5 {[%emt 0:01:06]} f6 {[%emt 0:02:07]} 11. Be3 {[%emt 0:00:36]} Be7 {[%emt 0:00:33]} 12. Nc3 {[%emt 0:08:26]} O-O {[%emt 0:00:53]} 13. Rfe1 {[%emt 0:02:07]} Qd7 {[%emt 0:08:06]} 14. Rad1 {[%emt 0:00:57]} Rac8 {[%emt 0:05:46]} 15. Qa4 {[%emt 0:03:25]} f5 {[%emt 0:13:28]} 16. e5 {[%emt 0:03:36]} d5 {[%emt 0:02:01]} 17. Bg5 {[%emt 0:03:16]} Bxg5 {[%emt 0:06:09]} 18. Nxg5 {[%emt 0:00:06]} Qe7 {[%emt 0:01:56]} 19. Nf3 {[%emt 0:00:18]} c5 {[%emt 0:02:44]} 20. Qxa7 {[%emt 0:01:52]} c4 {[%emt 0:01:28]} 21. Qa4 {[%emt 0:06:16]} Bc6 {[%emt 0:00:48]} 22. Qc2 {[%emt 0:00:18]} Nf4 {[%emt 0:00:54]} 23. Rf1 {[%emt 0:01:43]} g5 {[%emt 0:05:32]} 24. Qd2 {[%emt 0:06:27]} Be8 {[%emt 0:00:55]} 25. Ne1 {[%emt 0:00:41]} Ng6 {[%emt 0:01:10]} 26. f3 {[%emt 0:03:46]} f4 {[%emt 0:00:49]} 27. g3 {[%emt 0:02:13]} h5 {[%emt 0:01:26]} 28. Ng2 {[%emt 0:01:19]} Rf7 {[%emt 0:05:46]} 29. Rf2 {[%emt 0:00:54]} Qf8 {[%emt 0:01:49]} 30. gxf4 {[%emt 0:04:37]} gxf4 {[%emt 0:00:35]} 31. Kh1 {[%emt 0:00:16]} Kh8 {[%emt 0:01:07]} 32. Rg1 {[%emt 0:00:24]} Rb8 {[%emt 0:03:04]} 33. Qc1 {[%emt 0:02:47]} Rfb7 {[%emt 0:00:52]} 34. Rd2 {[%emt 0:00:42]} Qe7 {[%emt 0:02:13]} 35. Ne2 {[%emt 0:03:41]} Qf8 {[%emt 0:00:42]} 36. Rc2 {[%emt 0:00:57]} Rf7 {[%emt 0:00:13]} 37. Qe1 {[%emt 0:03:28]} Qe7 {[%emt 0:00:43]} 38. Nc3 {[%emt 0:01:06]} Rf5 {[%emt 0:00:36]} 39. Rd2 {[%emt 0:00:54]} Qd8 {[%emt 0:00:29]} 40. Ne2 {[%emt 0:03:29]} Qe7 {[%emt 0:00:33]} 41. Qf2 {[%emt 0:00:23]} Rb7 {[%emt 0:00:44]} 42. Qe1 {[%emt 0:01:12]} Rb8 {[%emt 0:00:17]} 43. Nc3 {[%emt 0:00:24]} Qd8 {[%emt 0:00:29]} 44. Nd1 {[%emt 0:00:50]} Rb7 {[%emt 0:00:52]} 45. Nf2 {[%emt 0:00:46]} Qa5 {[%emt 0:00:38]} 46. Nh3 {[%emt 0:01:09]} Qd8 {[%emt 0:01:16]} 47. Re2 {[%emt 0:01:13]} Qe7 {[%emt 0:00:46]} 48. Qc1 {[%emt 0:00:54]} Qf8 {[%emt 0:00:37]} 49. Rc2 {[%emt 0:00:34]} Rb8 {[%emt 0:00:41]} 50. Qd2 {[%emt 0:04:49]} Ba4 {[%emt 0:00:59]} 51. Rc3 {[%emt 0:01:17]} Qb4 {[%emt 0:01:40]} 52. b3 {[%emt 0:03:20]} cxb3 {[%emt 0:00:44]} 53. axb3 {[%emt 0:00:06]} Bd7 {[%emt 0:00:30]} 54. Ngxf4 {[%emt 0:00:30]} Nxf4 {[%emt 0:00:35]} 55. Nxf4 {[%emt 0:00:05]} Kh7 {[%emt 0:00:50]} 56. Qg2 {[%emt 0:01:32]} Qe7 {[%emt 0:00:39]} 57. Qg6+ {[%emt 0:00:13]} Kh8 {[%emt 0:00:06]} 58. Qxf5 {[%emt 0:00:07]} 1-0

[Event "Portugal Open 2020"]
[Site "Lisbon"]
[Date "2020.01.29"]
[Round "6.24"]
[White "Jaracz, Pawel"]
[Black "Cordeiro, Joao Carlos Santos F"]
[Result "1-0"]
[ECO "C95"]
[WhiteElo "2466"]
[BlackElo "2005"]
[Annotator "ChessBase"]
[PlyCount "89"]
[EventDate "2020.01.25"]
[EventType "swiss"]
[EventCountry "POR"]
[SourceTitle "playchess.com"]
[Source "ChessBase"]
[SourceQuality "1"]
[TimeControl "5400+30"]

1. e4 {[%emt 0:00:00]} e5 {[%emt 0:00:53]} 2. Nf3 {[%emt 0:00:07]} Nc6 {[%emt 0:00:07]} 3. Bb5 {[%emt 0:00:10]} a6 {[%emt 0:00:11]} 4. Ba4 {[%emt 0:00:06]} Nf6 {[%emt 0:00:19]} 5. O-O {[%emt 0:00:12]} b5 {[%emt 0:01:04]} 6. Bb3 {[%emt 0:00:04]} Be7 {[%emt 0:00:05]} 7. Re1 {[%emt 0:00:34]} d6 {[%emt 0:00:07]} 8. c3 {[%emt 0:00:12]} O-O {[%emt 0:02:32]} 9. h3 {[%emt 0:00:21]} Nb8 {[%emt 0:04:17]} 10. d4 {[%emt 0:00:31]} Nbd7 {[%emt 0:00:41]} 11. Nbd2 {[%emt 0:00:20]} Bb7 {[%emt 0:00:37]} 12. Bc2 {[%emt 0:00:49]} Re8 {[%emt 0:01:33]} 13. Nf1 {[%emt 0:02:26]} Bf8 {[%emt 0:02:56]} 14. Ng3 {[%emt 0:00:35]} g6 {[%emt 0:02:02]} 15. Bd2 {[%emt 0:00:54]} c5 {[%emt 0:06:33]} 16. d5 {[%emt 0:02:52]} c4 {[%emt 0:02:17]} 17. b4 {[%emt 0:06:26]} a5 {[%emt 0:09:09]} 18. a4 {[%emt 0:00:30]} bxa4 {[%emt 0:06:00]} 19. Bxa4 {[%emt 0:02:45]} Qc7 {[%emt 0:02:30]} 20. Qe2 {[%emt 0:18:04]} Reb8 {[%emt 0:04:28]} 21. Rec1 {[%emt 0:08:04]} Nb6 {[%emt 0:17:06]} 22. Bb5 {[%emt 0:05:14]} axb4 {[%emt 0:06:10]} 23. cxb4 {[%emt 0:01:52]} Rxa1 {[%emt 0:03:48]} 24. Rxa1 {[%emt 0:00:03]} Ra8 {[%emt 0:05:18]} 25. Rc1 {[%emt 0:08:29]} Ba6 {[%emt 0:06:36]} 26. Bxa6 {[%emt 0:06:28]} Rxa6 {[%emt 0:00:04]} 27. Be3 {[%emt 0:00:59]} Nfd7 {[%emt 0:01:02]} 28. Qc2 {[%emt 0:06:06]} Ra4 {[%emt 0:02:16]} 29. Qb1 {[%emt 0:05:34]} Qa7 {[%emt 0:05:12]} 30. Nd2 {[%emt 0:02:45]} Qa6 {[%emt 0:00:33]} 31. Ne2 {[%emt 0:00:35]} f5 {[%emt 0:03:58]} 32. Nc3 {[%emt 0:01:02]} Ra3 {[%emt 0:01:21]} 33. exf5 {[%emt 0:00:29]} gxf5 {[%emt 0:00:36]} 34. Qxf5 {[%emt 0:00:25]} Ra1 {[%emt 0:01:28]} 35. Nde4 {[%emt 0:01:14]} Rxc1+ {[%emt 0:00:26]} 36. Bxc1 {[%emt 0:00:03]} Qa1 {[%emt 0:00:48]} 37. Qg5+ {[%emt 0:00:12]} Kh8 {[%emt 0:00:26]} 38. Kh2 {[%emt 0:01:14]} Be7 {[%emt 0:01:40]} 39. Qxe7 {[%emt 0:02:52]} Qxc1 {[%emt 0:00:04]} 40. g3 {[%emt 0:00:49]} Qh6 {[%emt 0:01:02]} 41. Nxd6 {[%emt 0:02:28]} Qf6 {[%emt 0:00:39]} 42. Qe8+ {[%emt 0:00:34]} Kg7 {[%emt 0:00:10]} 43. Nce4 {[%emt 0:02:56]} Qf8 {[%emt 0:00:56]} 44. Qe6 {[%emt 0:00:15]} c3 {[%emt 0:00:55]} 45. Nf5+ {[%emt 0:00:10]} 1-0

[Event "Portugal Open 2020"]
[Site "Lisbon"]
[Date "2020.01.29"]
[Round "6.27"]
[White "Gonzalez Trigal, Jose Luis"]
[Black "Chennaoui, Yasin"]
[Result "1-0"]
[ECO "A41"]
[WhiteElo "2369"]
[BlackElo "2093"]
[Annotator "ChessBase"]
[PlyCount "128"]
[EventDate "2020.01.25"]
[EventType "swiss"]
[EventCountry "POR"]
[SourceTitle "playchess.com"]
[Source "ChessBase"]
[SourceQuality "1"]
[TimeControl "5400+30"]

1. d4 {[%emt 0:00:00]} d6 {[%emt 0:01:05]} 2. Nf3 {[%emt 0:00:00]} Nd7 {[%emt 0:00:16]} 3. c4 {[%emt 0:00:00]} e5 {[%emt 0:00:34]} 4. Nc3 {[%emt 0:00:39]} Ngf6 {[%emt 0:00:21]} 5. g3 {[%emt 0:00:19]} Be7 {[%emt 0:00:07]} 6. Bg2 {[%emt 0:00:06]} O-O {[%emt 0:00:07]} 7. O-O {[%emt 0:00:08]} c6 {[%emt 0:00:04]} 8. b3 {[%emt 0:00:25]} Re8 {[%emt 0:01:04]} 9. Qc2 {[%emt 0:00:19]} Bf8 {[%emt 0:00:36]} 10. Rd1 {[%emt 0:02:46]} a6 {[%emt 0:02:21]} 11. e3 {[%emt 0:06:28]} Rb8 {[%emt 0:11:44]} 12. Bb2 {[%emt 0:09:19]} b5 {[%emt 0:03:08]} 13. dxe5 {[%emt 0:03:29]} dxe5 {[%emt 0:00:25]} 14. Ne4 {[%emt 0:00:32]} Qc7 {[%emt 0:17:32]} 15. Rac1 {[%emt 0:20:14]} c5 {[%emt 0:09:23]} 16. Nfg5 {[%emt 0:08:27]} h6 {[%emt 0:08:36]} 17. Nxf6+ {[%emt 0:00:37]} Nxf6 {[%emt 0:01:34]} 18. Ne4 {[%emt 0:00:05]} Nxe4 {[%emt 0:03:54]} 19. Bxe4 {[%emt 0:00:02]} Be6 {[%emt 0:20:33]} 20. Bd5 {[%emt 0:01:16]} Rbd8 {[%emt 0:00:09]} 21. Bxe6 {[%emt 0:07:40]} Rxe6 {[%emt 0:00:13]} 22. Rxd8 {[%emt 0:00:20]} Qxd8 {[%emt 0:00:03]} 23. Rd1 {[%emt 0:00:11]} Rd6 {[%emt 0:01:05]} 24. Rxd6 {[%emt 0:00:59]} Qxd6 {[%emt 0:00:29]} 25. cxb5 {[%emt 0:00:09]} axb5 {[%emt 0:00:15]} 26. a4 {[%emt 0:00:07]} bxa4 {[%emt 0:03:58]} 27. bxa4 {[%emt 0:00:02]} Qb6 {[%emt 0:03:13]} 28. Bxe5 {[%emt 0:01:44]} Qb4 {[%emt 0:00:32]} 29. Bc3 {[%emt 0:00:50]} Qa3 {[%emt 0:03:58]} 30. a5 {[%emt 0:03:22]} c4 {[%emt 0:00:05]} 31. Qb2 {[%emt 0:00:36]} Qa4 {[%emt 0:00:42]} 32. Qd2 {[%emt 0:00:54]} Qb5 {[%emt 0:04:06]} 33. Qd4 {[%emt 0:01:03]} h5 {[%emt 0:01:14]} 34. h4 {[%emt 0:00:41]} Qb1+ {[%emt 0:00:41]} 35. Kg2 {[%emt 0:01:30]} Qb7+ {[%emt 0:00:02]} 36. e4 {[%emt 0:00:14]} Qc6 {[%emt 0:00:01]} 37. Kh2 {[%emt 0:00:43]} Qa4 {[%emt 0:00:54]} 38. Kg1 {[%emt 0:03:18]} Qb5 {[%emt 0:00:13]} 39. Qb6 {[%emt 0:01:33]} Qxb6 {[%emt 0:03:23]} 40. axb6 {[%emt 0:00:01]} Bd6 {[%emt 0:00:01]} 41. b7 {[%emt 0:01:23]} f6 {[%emt 0:00:34]} 42. f4 {[%emt 0:00:39]} Kf7 {[%emt 0:00:26]} 43. e5 {[%emt 0:00:25]} Bb8 {[%emt 0:00:33]} 44. Kf2 {[%emt 0:00:48]} Ke6 {[%emt 0:00:08]} 45. Ke3 {[%emt 0:00:33]} Kd5 {[%emt 0:01:01]} 46. exf6 {[%emt 0:01:18]} gxf6 {[%emt 0:00:02]} 47. Bxf6 {[%emt 0:00:15]} Ba7+ {[%emt 0:00:17]} 48. Kd2 {[%emt 0:00:21]} Kc6 {[%emt 0:00:05]} 49. Bd4 {[%emt 0:00:15]} Bb8 {[%emt 0:00:40]} 50. Be5 {[%emt 0:00:22]} Bxe5 {[%emt 0:00:30]} 51. fxe5 {[%emt 0:00:05]} Kxb7 {[%emt 0:00:03]} 52. Kc3 {[%emt 0:00:09]} Kc7 {[%emt 0:00:08]} 53. Kxc4 {[%emt 0:00:07]} Kc6 {[%emt 0:00:05]} 54. Kd4 {[%emt 0:00:06]} Kd7 {[%emt 0:00:09]} 55. Ke4 {[%emt 0:00:16]} Ke7 {[%emt 0:03:37]} 56. Kf5 {[%emt 0:00:08]} Kf7 {[%emt 0:00:29]} 57. Kg5 {[%emt 0:00:10]} Ke6 {[%emt 0:00:01]} 58. Kxh5 {[%emt 0:00:13]} Kxe5 {[%emt 0:00:01]} 59. Kg6 {[%emt 0:00:13]} Ke4 {[%emt 0:00:03]} 60. h5 {[%emt 0:00:21]} Kf3 {[%emt 0:00:02]} 61. h6 {[%emt 0:00:20]} Kxg3 {[%emt 0:00:04]} 62. h7 {[%emt 0:00:16]} Kf2 {[%emt 0:00:04]} 63. h8=Q {[%emt 0:00:25]} Ke1 {[%emt 0:00:02]} 64. Qh2 {[%emt 0:00:16]} Kd1 {[%emt 0:00:03]} 1-0

[Event "Portugal Open 2020"]
[Site "Lisbon"]
[Date "2020.01.29"]
[Round "6.37"]
[White "Kurylski, Leonardo Tavares"]
[Black "Costa, Paulo"]
[Result "*"]
[ECO "B06"]
[WhiteElo "1980"]
[BlackElo "2179"]
[Annotator "RC"]
[PlyCount "102"]
[EventDate "2020.01.25"]
[EventType "swiss"]
[EventCountry "POR"]
[SourceTitle "playchess.com"]
[Source "ChessBase"]
[SourceQuality "1"]
[TimeControl "5400+30"]

1. d4 {[%emt 0:00:00]} d6 {[%emt 0:00:54]} 2. e4 {[%emt 0:00:02]} g6 {[%emt 0:00:51]} 3. Nc3 {[%emt 0:06:07]} Bg7 {[%emt 0:00:23]} 4. Be3 {[%emt 0:00:08]} a6 {[%emt 0:00:31]} 5. a4 {[%emt 0:01:34]} Nd7 {[%emt 0:02:05]} 6. a5 {[%emt 0:01:32]} e5 {[%emt 0:02:40]} 7. h4 {[%emt 0:06:15]} Ngf6 {[%emt 0:07:57]} 8. d5 Nc5 9. f3 {[%emt 0:04:34]} Nh5 {[%emt 0:05:45]} 10. Nge2 {[%emt 0:02:56]} f5 {[%emt 0:04:05]} 11. b4 {[%emt 0:00:37]} Nd7 {[%emt 0:02:32]} 12. g4 {[%emt 0:10:38]} fxg4 {[%emt 0:01:29]} 13. fxg4 {[%emt 0:00:30]} Nf4 {[%emt 0:00:08]} 14. g5 {[%emt 0:00:08]} h6 {[%emt 0:01:59]} 15. Rg1 {[%emt 0:02:49]} hxg5 16. hxg5 {[%emt 0:00:11]} Rh5 {[%emt 0:05:29]} 17. Bf2 {[%emt 0:00:20]} Nf8 {[%emt 0:05:52]} 18. Ra3 {[%emt 0:00:48]} Nh7 {[%emt 0:06:53]} 19. Nxf4 {[%emt 0:00:56]} exf4 {[%emt 0:00:06]} 20. Ne2 {[%emt 0:00:11]} Be5 {[%emt 0:04:38]} 21. Qc1 {[%emt 0:03:48]} f3 {[%emt 0:09:49]} 22. Nf4 {[%emt 0:00:07]} Rxg5 {[%emt 0:14:01]} 23. Rh1 {[%emt 0:03:11]} Qf6 {[%emt 0:02:41]} 24. Rxh7 {[%emt 0:04:19]} Bb2 {[%emt 0:05:34]} 25. Qd2 {[%emt 0:02:35]} Bxa3 {[%emt 0:01:22]} 26. Bd4 {[%emt 0:00:14]} Re5 {[%emt 0:00:20]} 27. Kf2 {[%emt 0:15:25]} Bxb4 {[%emt 0:07:13]} 28. Qxb4 {[%emt 0:01:02]} Qxf4 {[%emt 0:00:03]} 29. Bxe5 {[%emt 0:00:11]} Qxe5 {[%emt 0:01:09]} 30. Rxc7 {[%emt 0:10:37]} Qh2+ {[%emt 0:01:03]} 31. Ke3 {[%emt 0:00:20]} Qg1+ {[%emt 0:00:18]} 32. Kd2 {[%emt 0:00:22]} Qf2+ {[%emt 0:03:04]} 33. Kc3 {[%emt 0:00:11]} Qe1+ {[%emt 0:02:32]} 34. Kb3 {[%emt 0:00:04]} Qb1+ {[%emt 0:02:38]} 35. Kc3 {[%emt 0:00:10]} Qxb4+ {[%emt 0:00:45]} 36. Kxb4 {[%emt 0:00:05]} g5 {[%emt 0:00:17]} 37. c4 {[%emt 0:00:23]} g4 {[%emt 0:00:21]} 38. c5 {[%emt 0:01:33]} dxc5+ {[%emt 0:00:20]} 39. Kxc5 {[%emt 0:02:51]} Bd7 {[%emt 0:00:26]} 40. Kd4 {[%emt 0:00:39]} g3 {[%emt 0:00:49]} 41. Ke3 {[%emt 0:00:14]} g2 {[%emt 0:00:11]} 42. Bxg2 {[%emt 0:00:14]} fxg2 {[%emt 0:00:05]} 43. Kf2 {[%emt 0:00:48]} Ke7 {[%emt 0:01:14]} 44. Kxg2 {[%emt 0:00:15]} Kd6 {[%emt 0:00:47]} 45. Rxb7 {[%emt 0:00:10]} Bb5 {[%emt 0:00:14]} 46. Kf3 {[%emt 0:00:21]} Rf8+ {[%emt 0:00:35]} 47. Ke3 {[%emt 0:00:12]} Rf1 {[%emt 0:00:26]} 48. Rb6+ {[%emt 0:04:04]} Kc5 {[%emt 0:00:11]} 49. Re6 {[%emt 0:00:05]} Ra1 {[%emt 0:00:29]} 50. Kf4 {[%emt 0:01:34]} Rxa5 {[%emt 0:00:11]} 51. Ke5 {[%emt 0:00:46]} Ra1 {[%emt 0:00:13]} *

[Event "Portugal Open 2020"]
[Site "Lisbon"]
[Date "2020.01.30"]
[Round "7.16"]
[White "Stella, Andrea"]
[Black "Santos, Jose Guilherme B Lim"]
[Result "1-0"]
[ECO "A46"]
[WhiteElo "2465"]
[BlackElo "2211"]
[Annotator "ChessBase"]
[PlyCount "107"]
[EventDate "2020.01.25"]
[EventType "swiss"]
[EventCountry "POR"]
[SourceTitle "playchess.com"]
[Source "ChessBase"]
[SourceQuality "1"]
[TimeControl "5400+30"]

1. d4 {[%emt 0:03:28]} Nf6 {[%emt 0:00:00]} 2. Nf3 {[%emt 0:00:12]} e6 {[%emt 0:00:00]} 3. g3 {[%emt 0:00:06]} b6 {[%emt 0:03:22]} 4. Bg2 {[%emt 0:00:15]} Bb7 {[%emt 0:00:06]} 5. O-O {[%emt 0:00:07]} Be7 {[%emt 0:00:11]} 6. c4 {[%emt 0:00:05]} d6 {[%emt 0:00:31]} 7. Nc3 {[%emt 0:05:25]} O-O {[%emt 0:01:28]} 8. d5 {[%emt 0:02:17]} exd5 {[%emt 0:23:51]} 9. cxd5 {[%emt 0:03:58]} b5 {[%emt 0:07:23]} 10. Nxb5 {[%emt 0:13:36]} Nxd5 {[%emt 0:05:08]} 11. Nfd4 {[%emt 0:15:49]} Qd7 {[%emt 0:11:06]} 12. e4 {[%emt 0:03:08]} Nb6 {[%emt 0:04:31]} 13. Re1 {[%emt 0:21:09]} Bf6 {[%emt 0:09:09]} 14. a4 {[%emt 0:04:38]} a6 {[%emt 0:08:02]} 15. Nc3 {[%emt 0:02:13]} Nc6 {[%emt 0:00:43]} 16. Nxc6 {[%emt 0:09:23]} Bxc6 {[%emt 0:04:17]} 17. a5 {[%emt 0:00:21]} Bxc3 {[%emt 0:00:58]} 18. bxc3 {[%emt 0:00:38]} Na4 {[%emt 0:00:34]} 19. c4 {[%emt 0:02:35]} Rab8 {[%emt 0:00:55]} 20. f3 {[%emt 0:02:39]} Nc5 {[%emt 0:06:19]} 21. Be3 {[%emt 0:02:02]} Qe6 {[%emt 0:04:54]} 22. Qe2 {[%emt 0:04:15]} Rb4 {[%emt 0:02:25]} 23. Bxc5 {[%emt 0:01:42]} dxc5 {[%emt 0:00:05]} 24. Qf2 {[%emt 0:00:03]} Qe5 {[%emt 0:04:48]} 25. f4 {[%emt 0:01:20]} Qd4 {[%emt 0:00:26]} 26. Qxd4 {[%emt 0:00:27]} cxd4 {[%emt 0:00:04]} 27. Bf1 {[%emt 0:00:19]} Rd8 {[%emt 0:00:55]} 28. Bd3 {[%emt 0:00:22]} Rdb8 {[%emt 0:00:44]} 29. c5 {[%emt 0:00:47]} Bb5 {[%emt 0:00:41]} 30. Red1 {[%emt 0:00:46]} Kf8 {[%emt 0:00:24]} 31. e5 {[%emt 0:00:38]} Bxd3 {[%emt 0:00:42]} 32. Rxd3 {[%emt 0:00:00]} Ke7 {[%emt 0:00:10]} 33. Rad1 {[%emt 0:00:51]} Rd8 {[%emt 0:00:03]} 34. Kf2 {[%emt 0:00:39]} Ke6 {[%emt 0:00:07]} 35. Kf3 {[%emt 0:00:24]} Kd5 {[%emt 0:00:11]} 36. c6 {[%emt 0:00:16]} Rdb8 {[%emt 0:00:36]} 37. Kg4 {[%emt 0:00:22]} R8b5 {[%emt 0:00:40]} 38. Kf5 {[%emt 0:00:22]} Rxa5 {[%emt 0:00:15]} 39. g4 {[%emt 0:00:01]} Rc5 {[%emt 0:00:38]} 40. Rh3 {[%emt 0:00:22]} h6 {[%emt 0:00:26]} 41. g5 {[%emt 0:00:16]} hxg5 {[%emt 0:01:01]} 42. Rh7 {[%emt 0:00:00]} Rxc6 {[%emt 0:01:22]} 43. Rxg7 {[%emt 0:00:14]} gxf4 {[%emt 0:00:02]} 44. Rxf7 {[%emt 0:00:09]} f3 {[%emt 0:01:01]} 45. Rd7+ {[%emt 0:00:45]} Kc5 {[%emt 0:00:04]} 46. e6 {[%emt 0:01:54]} Rbb6 {[%emt 0:01:04]} 47. Rc1+ {[%emt 0:00:51]} Kb5 {[%emt 0:00:20]} 48. Rd5+ {[%emt 0:00:34]} Kb4 {[%emt 0:00:17]} 49. Rxd4+ {[%emt 0:00:15]} Ka5 {[%emt 0:00:21]} 50. Rxc6 {[%emt 0:00:16]} Rxc6 {[%emt 0:00:07]} 51. e7 {[%emt 0:00:26]} f2 {[%emt 0:00:02]} 52. Rf4 {[%emt 0:00:05]} Rc5+ {[%emt 0:00:30]} 53. Kf6 {[%emt 0:00:36]} Rc4 {[%emt 0:00:12]} 54. Rf5+ {[%emt 0:00:24]} 1-0

[Event "Portugal Open 2020"]
[Site "Lisbon"]
[Date "2020.01.30"]
[Round "7.28"]
[White "Chkhaidze, Nikoloz"]
[Black "Maloberti, David"]
[Result "1/2-1/2"]
[ECO "C15"]
[WhiteElo "2288"]
[BlackElo "2017"]
[Annotator "ChessBase"]
[PlyCount "122"]
[EventDate "2020.01.25"]
[EventType "swiss"]
[EventCountry "POR"]
[SourceTitle "playchess.com"]
[Source "ChessBase"]
[SourceQuality "1"]
[TimeControl "5400+30"]

1. e4 {[%emt 0:00:00]} e6 {[%emt 0:00:39]} 2. d4 {[%emt 0:00:00]} d5 {[%emt 0:00:03]} 3. Nc3 {[%emt 0:00:00]} Bb4 {[%emt 0:00:03]} 4. exd5 {[%emt 0:00:00]} exd5 {[%emt 0:00:04]} 5. Bd3 {[%emt 0:00:00]} Nf6 {[%emt 0:01:38]} 6. Nge2 {[%emt 0:00:14]} O-O {[%emt 0:01:53]} 7. O-O {[%emt 0:00:03]} h6 {[%emt 0:00:58]} 8. a3 {[%emt 0:03:52]} Bd6 {[%emt 0:02:27]} 9. Nb5 {[%emt 0:00:29]} Be7 {[%emt 0:00:14]} 10. Bf4 {[%emt 0:00:12]} Na6 {[%emt 0:00:03]} 11. Ng3 {[%emt 0:01:39]} c6 {[%emt 0:00:07]} 12. Nc3 {[%emt 0:00:04]} Bd6 {[%emt 0:05:52]} 13. Bxd6 {[%emt 0:03:38]} Qxd6 {[%emt 0:00:05]} 14. Bxa6 {[%emt 0:00:06]} bxa6 {[%emt 0:00:02]} 15. Na4 {[%emt 0:00:28]} Rb8 {[%emt 0:00:04]} 16. b4 {[%emt 0:00:36]} a5 {[%emt 0:03:50]} 17. c3 {[%emt 0:00:30]} Ne4 {[%emt 0:07:36]} 18. Nxe4 {[%emt 0:00:43]} dxe4 {[%emt 0:00:04]} 19. Nc5 {[%emt 0:00:12]} f5 {[%emt 0:00:07]} 20. f3 {[%emt 0:03:44]} Re8 {[%emt 0:06:41]} 21. fxe4 {[%emt 0:02:37]} fxe4 {[%emt 0:00:05]} 22. Qh5 {[%emt 0:00:24]} Re7 {[%emt 0:03:43]} 23. Rae1 {[%emt 0:00:36]} e3 {[%emt 0:04:56]} 24. Qf3 {[%emt 0:02:15]} Be6 {[%emt 0:01:58]} 25. Qxe3 {[%emt 0:08:29]} Rbe8 {[%emt 0:00:04]} 26. Qe5 {[%emt 0:00:51]} Qd5 {[%emt 0:00:55]} 27. Qxd5 {[%emt 0:08:11]} Bxd5 {[%emt 0:00:35]} 28. Nd3 {[%emt 0:11:01]} Bc4 {[%emt 0:09:49]} 29. Rxe7 {[%emt 0:00:39]} Rxe7 {[%emt 0:00:04]} 30. Re1 {[%emt 0:00:09]} Rxe1+ {[%emt 0:01:20]} 31. Nxe1 {[%emt 0:00:02]} axb4 {[%emt 0:04:37]} 32. axb4 {[%emt 0:00:02]} Kf7 {[%emt 0:04:54]} 33. Kf2 {[%emt 0:00:03]} Ke6 {[%emt 0:00:46]} 34. Ke3 {[%emt 0:00:35]} Kf5 {[%emt 0:03:02]} 35. Nd3 {[%emt 0:00:36]} h5 {[%emt 0:01:15]} 36. Ne5 {[%emt 0:00:20]} Bd5 {[%emt 0:00:17]} 37. g3 {[%emt 0:00:03]} g5 {[%emt 0:03:21]} 38. c4 {[%emt 0:01:14]} Bg2 {[%emt 0:00:25]} 39. Nf7 {[%emt 0:02:17]} Kf6 {[%emt 0:05:30]} 40. Nd6 {[%emt 0:00:31]} Ke6 {[%emt 0:02:48]} 41. Nc8 {[%emt 0:03:47]} a6 {[%emt 0:02:07]} 42. Kd3 {[%emt 0:12:14]} Kf5 {[%emt 0:01:16]} 43. Ke3 {[%emt 0:08:06]} Ke6 {[%emt 0:00:06]} 44. c5 {[%emt 0:13:45]} Kf5 {[%emt 0:07:18]} 45. Ne7+ {[%emt 0:02:51]} Kf6 {[%emt 0:01:00]} 46. Nc8 {[%emt 0:00:03]} Kf5 {[%emt 0:00:03]} 47. Nb6 {[%emt 0:00:26]} Ke6 {[%emt 0:03:07]} 48. h4 {[%emt 0:00:14]} gxh4 {[%emt 0:00:23]} 49. gxh4 {[%emt 0:00:01]} Kf5 {[%emt 0:01:35]} 50. d5 {[%emt 0:06:51]} Bxd5 {[%emt 0:02:24]} 51. Nxd5 {[%emt 0:05:56]} cxd5 {[%emt 0:00:05]} 52. Kd3 {[%emt 0:00:42]} Kf6 {[%emt 0:02:57]} 53. Kd2 {[%emt 0:02:20]} Ke6 {[%emt 0:00:15]} 54. Kc3 {[%emt 0:00:28]} Kd7 {[%emt 0:05:04]} 55. Kb3 {[%emt 0:00:08]} Kc7 {[%emt 0:00:21]} 56. Ka3 {[%emt 0:01:17]} Kc6 {[%emt 0:00:28]} 57. Ka4 {[%emt 0:00:41]} Kb7 {[%emt 0:00:57]} 58. Ka5 {[%emt 0:00:48]} d4 {[%emt 0:01:58]} 59. Ka4 {[%emt 0:00:43]} Kc6 {[%emt 0:00:04]} 60. Kb3 {[%emt 0:00:16]} a5 {[%emt 0:00:01]} 61. bxa5 {[%emt 0:00:39]} Kxc5 {[%emt 0:00:04]} 1/2-1/2